bitfinex/quotes_BTCUSD_20220111
["timestamp","ask_amount","ask_price","bid_price","bid_amount"]
[1641878660709,0.232,42088.0,42086.0,0.31850045]
[1641878662006,0.2,42088.0,42086.0,0.31150045]
[1641878662806,0.214,42088.0,42086.0,0.00831777]
[1641878663906,0.2,42088.0,42086.0,0.00031777]
[1641878664560,0.2,42088.0,42086.0,0.28140353]
[1641878664761,0.214,42088.0,42086.0,0.28940353]
[1641878665058,0.214,42088.0,42087.0,0.34257322]
[1641878666563,0.2,42088.0,42086.0,0.00031777]
[1641878666759,0.214,42088.0,42087.0,0.008]
[1641878667908,0.2,42088.0,42087.0,0.00031751]
[1641878668708,0.208,42088.0,42087.0,0.00731751]
[1641878669910,0.008,42088.0,42087.0,0.00731751]
[1641878670712,0.016,42088.0,42087.0,0.01431751]
[1641878671957,0.00071437,42091.0,42087.0,0.00031751]
[1641878672556,2.53468371,42089.0,42087.0,0.00031751]
[1641878672957,0.00120979,42090.0,42087.0,0.00031751]
[1641878673156,0.00120979,42090.0,42079.0,0.1]
[1641878673157,0.00120979,42090.0,42081.0,0.24884033]
[1641878673357,0.00120979,42090.0,42081.0,0.29884033]
[1641878673659,0.00120979,42090.0,42084.0,0.30783438]
[1641878674059,0.00120979,42090.0,42084.0,0.35783438]
[1641878674357,0.33166687,42090.0,42084.0,0.05]
[1641878674558,0.00120979,42090.0,42081.0,0.29884033]
[1641878674758,0.05820979,42090.0,42084.0,0.001]
[1641878676005,0.00071436,42091.0,42087.0,0.33857531]
[1641878676212,0.00071436,42091.0,42082.0,0.05]
[1641878676809,0.05171436,42091.0,42082.0,0.05]
[1641878678109,0.00071436,42091.0,42084.0,0.0003183]
[1641878678309,0.00071436,42091.0,42087.0,0.059389]
[1641878678712,0.03871436,42091.0,42084.0,0.0033183]
[1641878678909,0.03871436,42091.0,42089.0,0.24357027]
[1641878679357,0.03871436,42091.0,42089.0,0.34357027]
[1641878679556,0.638,42091.0,42089.0,0.34357027]
[1641878679956,0.6,42091.0,42089.0,0.34357027]
[1641878680858,0.65,42091.0,42089.0,0.29557027]
[1641878681958,0.65,42091.0,42089.0,0.29357027]
[1641878681959,0.6,42091.0,42089.0,0.29357027]
[1641878682760,0.619,42091.0,42089.0,0.29757027]
[1641878683009,0.019,42091.0,42090.0,0.00032791]
[1641878683912,0.00071438,42092.0,42090.0,0.00032791]
[1641878684509,0.00071437,42093.0,42090.0,0.37397403]
[1641878684711,0.048,42092.0,42090.0,0.37597403]
[1641878684911,0.048,42092.0,42091.0,0.05]
[1641878685510,0.048,42092.0,42090.0,0.00232791]
[1641878686116,0.00071436,42094.0,42090.0,0.00032791]
[1641878686516,0.00071436,42094.0,42091.0,0.05]
[1641878686760,0.08442872,42094.0,42091.0,0.05]
[1641878686965,0.08371436,42094.0,42091.0,0.05]
[1641878687861,0.08371436,42094.0,42090.0,0.05032791]
[1641878688061,0.00071436,42095.0,42093.0,0.00032711]
[1641878688863,0.03471436,42095.0,42093.0,0.00232711]
[1641878689066,0.03471436,42095.0,42093.0,0.33570918]
[1641878689263,0.034,42095.0,42093.0,0.33570918]
[1641878689462,0.034,42095.0,42094.0,0.4973]
[1641878689662,0.034,42095.0,42094.0,0.84119198]
[1641878690062,0.98841435,42096.0,42094.0,0.4973]
[1641878690263,0.98841435,42096.0,42094.0,0.0473]
[1641878690264,0.00071435,42096.0,42094.0,0.0473]
[1641878690506,0.00071434,42097.0,42094.0,0.0473]
[1641878690706,0.00071434,42097.0,42094.0,0.0483]
[1641878691610,0.00071433,42098.0,42094.0,0.0483]
[1641878692007,0.00071433,42098.0,42094.0,0.0473]
[1641878693007,0.00071433,42098.0,42096.0,0.00032632]
[1641878694165,0.00071432,42099.0,42096.0,0.00032632]
[1641878695258,0.00071432,42100.0,42096.0,0.00032632]
[1641878696360,0.00142863,42100.0,42096.0,0.00032632]
[1641878696561,0.00071431,42100.0,42096.0,0.00032632]
[1641878697060,0.28672349,42099.0,42096.0,0.00032632]
[1641878697913,0.28672349,42099.0,42090.0,0.25410629]
[1641878698114,0.28476702,42095.0,42090.0,0.25410629]
[1641878698313,0.28476702,42095.0,42090.0,0.00032579]
[1641878698813,0.28548137,42095.0,42090.0,0.00132579]
[1641878700019,0.28548137,42095.0,42090.0,0.00032579]
[1641878700417,0.28548137,42095.0,42084.0,0.311839]
[1641878700617,0.28548137,42095.0,42085.0,0.41894]
[1641878700816,0.28548137,42095.0,42090.0,0.002]
[1641878701017,0.43075382,42091.0,42090.0,0.002]
[1641878701418,0.00071438,42092.0,42090.0,0.002]
[1641878702076,0.00071438,42092.0,42086.0,0.45246045]
[1641878702273,0.00071438,42092.0,42090.0,0.37164]
[1641878702477,0.00071437,42093.0,42086.0,0.49976045]
[1641878702773,0.00071437,42093.0,42090.0,0.009]
[1641878702971,0.00071437,42093.0,42091.0,0.00030049]
[1641878703773,0.00071436,42094.0,42091.0,0.00030049]
[1641878703972,0.00071436,42094.0,42091.0,0.31086227]
[1641878704175,0.00071436,42094.0,42091.0,0.00030049]
[1641878704772,0.00071436,42094.0,42091.0,0.00330049]
[1641878704973,0.28548137,42095.0,42091.0,0.00330049]
[1641878705175,0.33353527,42094.0,42091.0,0.00330049]
[1641878705409,0.28548137,42095.0,42091.0,0.00330049]
[1641878706212,0.28548137,42095.0,42091.0,0.00030049]
[1641878706614,0.33116537,42094.0,42091.0,0.00030049]
[1641878706814,0.33116537,42094.0,42091.0,0.00130049]
[1641878708017,0.33116537,42094.0,42093.0,0.00029996]
[1641878708820,0.33116537,42094.0,42093.0,0.00129996]
[1641878709269,0.68653471,42094.0,42093.0,0.00129996]
[1641878710268,0.33116537,42094.0,42093.0,0.00029996]
[1641878710668,0.28476702,42095.0,42093.0,0.00029996]
[1641878710870,0.28476702,42095.0,42093.0,0.00129996]
[1641878711169,0.3352202,42094.0,42093.0,0.00129996]
[1641878712171,0.3352202,42094.0,42093.0,0.00029996]
[1641878712773,0.3352202,42094.0,42093.0,0.00129996]
[1641878713416,0.79372219,42094.0,42093.0,0.00129996]
[1641878714116,0.3352202,42094.0,42093.0,0.00029996]
[1641878714516,0.33353759,42094.0,42093.0,0.00029996]
[1641878714918,0.33353759,42094.0,42093.0,0.00229996]
[1641878715317,0.34599545,42094.0,42093.0,0.00229996]
[1641878715718,0.67853017,42094.0,42093.0,0.00229996]
[1641878716116,0.67853017,42094.0,42093.0,0.00029996]
[1641878716417,0.33253472,42094.0,42093.0,0.00029996]
[1641878716867,0.33253472,42094.0,42093.0,0.00229996]
[1641878717067,0.28476702,42095.0,42093.0,0.00229996]
[1641878717470,0.61923162,42095.0,42093.0,0.00229996]
[1641878717669,0.71162496,42094.0,42093.0,0.00229996]
[1641878717869,0.37164,42094.0,42093.0,0.00229996]
[1641878718068,0.37164,42094.0,42093.0,0.00029996]
[1641878718269,2.04359756,42094.0,42093.0,0.00029996]
[1641878718869,2.06285317,42094.0,42093.0,0.00029996]
[1641878719271,2.11015317,42094.0,42093.0,0.00029996]
[1641878720073,2.09215317,42094.0,42093.0,0.00029996]
[1641878720923,2.10315317,42094.0,42093.0,0.00029996]
[1641878723022,2.10315317,42094.0,42079.0,0.27534113]
[1641878723023,0.2614053,42083.0,42079.0,0.27564109]
[1641878723224,0.2614053,42083.0,42080.0,0.37164]
[1641878723422,0.2614053,42083.0,42079.0,0.37564109]
[1641878724264,0.2614053,42083.0,42079.0,0.10029996]
[1641878724466,0.2614053,42083.0,42079.0,0.05029996]
[1641878724661,0.2614053,42083.0,42080.0,0.05]
[1641878724865,0.2704053,42083.0,42080.0,0.05]
[1641878725063,0.009,42083.0,42080.0,0.05]
[1641878725262,0.009,42083.0,42079.0,0.00029996]
[1641878726062,0.29543812,42084.0,42079.0,0.00029996]
[1641878726264,0.54584354,42084.0,42079.0,0.00029996]
[1641878726663,0.25040542,42084.0,42079.0,0.00029996]
[1641878726866,0.25840542,42084.0,42079.0,0.00029996]
[1641878727665,0.54338114,42084.0,42079.0,0.00029996]
[1641878727920,0.54338114,42084.0,42078.0,0.42400478]
[1641878728123,0.53538114,42084.0,42078.0,0.42400478]
[1641878728922,0.54338114,42084.0,42078.0,0.42400478]
[1641878729623,0.54338114,42084.0,42078.0,0.05030315]
[1641878729823,0.00128794,42083.0,42078.0,0.05030315]
[1641878730023,0.00128794,42083.0,42078.0,0.00030315]
[1641878730823,0.00328794,42083.0,42078.0,0.00030315]
[1641878731670,0.002,42083.0,42078.0,0.00030315]
[1641878732062,0.53538114,42084.0,42078.0,0.00030315]
[1641878732862,0.53738114,42084.0,42078.0,0.00030315]
[1641878733062,0.00034897,42083.0,42077.0,0.00084575]
[1641878733665,0.00034897,42083.0,42077.0,0.00084574]
[1641878734966,0.00234897,42083.0,42077.0,0.00084575]
[1641878736215,0.00034897,42083.0,42077.0,0.00084575]
[1641878737016,0.00234897,42083.0,42077.0,0.00084575]
[1641878737214,0.00234897,42083.0,42077.0,0.32681199]
[1641878737416,0.00234897,42083.0,42077.0,0.37681199]
[1641878737615,0.00234897,42083.0,42077.0,0.42681199]
[1641878738116,0.00034897,42083.0,42079.0,0.00030368]
[1641878738319,0.00123567,42081.0,42079.0,0.00030368]
[1641878738616,0.00034897,42083.0,42079.0,0.00030368]
[1641878740670,0.00034897,42083.0,42079.0,0.00570147]
[1641878740872,0.00034897,42083.0,42082.0,0.37164]
[1641878741070,0.00034897,42083.0,42082.0,0.41894]
[1641878741670,0.00034897,42083.0,42082.0,0.0473]
[1641878743012,0.00034897,42083.0,42082.0,0.04760288]
[1641878744514,0.00034897,42083.0,42082.0,0.44336652]
[1641878744716,0.00034897,42083.0,42082.0,0.81500652]
[1641878744913,0.00034897,42083.0,42082.0,0.91500652]
[1641878745613,0.00034897,42083.0,42082.0,0.66336522]
[1641878747861,0.00052307,42083.0,42082.0,0.66336522]
[1641878748462,1.01075869,42083.0,42080.0,0.059399]
[1641878748666,1.01075869,42083.0,42081.0,0.0473]
[1641878749064,0.00052307,42083.0,42073.0,1.3882114]
[1641878749264,0.00052307,42083.0,42082.0,0.0473]
[1641878750911,0.00052307,42083.0,42079.0,0.059398]
[1641878751110,0.00107307,42083.0,42079.0,0.059398]
[1641878751317,0.24337775,42082.0,42079.0,0.059398]
[1641878751712,0.24337775,42082.0,42079.0,0.059399]
[1641878752111,0.24337775,42082.0,42079.0,0.109399]
[1641878753112,0.24437775,42082.0,42081.0,0.00031541]
[1641878753314,0.001,42082.0,42081.0,0.00031541]
[1641878753513,0.001,42082.0,42081.0,0.37181341]
[1641878753916,0.001,42082.0,42081.0,0.42181341]
[1641878754173,0.001,42082.0,42081.0,1.28346476]
[1641878754361,1.20311485,42102.0,42081.0,1.28346476]
[1641878754362,1.1125649,42099.0,42085.0,0.167395]
[1641878754561,1.1125649,42099.0,42087.0,0.13581305]
[1641878754562,1.1113,42099.0,42087.0,0.13581305]
[1641878754761,1.1113,42099.0,42092.0,0.23753971]
[1641878754963,1.1113,42099.0,42094.0,0.04859688]
[1641878754964,0.028,42099.0,42094.0,0.04859688]
[1641878755161,0.028,42099.0,42095.0,0.0473]
[1641878755361,0.028,42099.0,42096.0,0.08079497]
[1641878755661,0.028,42099.0,42097.0,0.00629729]
[1641878755860,0.028,42099.0,42098.0,0.00791017]
[1641878756061,0.028,42099.0,42096.0,0.0973]
[1641878756261,1.2141,42105.0,42097.0,0.70653936]
[1641878756861,1.2141,42105.0,42097.0,1.04497198]
[1641878757063,1.2731,42105.0,42098.0,0.60563215]
[1641878757261,1.2731,42105.0,42098.0,0.65563215]
[1641878757662,0.00085482,42103.0,42098.0,0.05]
[1641878757910,0.24293895,42102.0,42099.0,0.00031063]
[1641878759119,0.31593895,42102.0,42099.0,0.00031063]
[1641878759318,0.31593895,42102.0,42099.0,0.60594278]
[1641878759617,0.31593895,42102.0,42099.0,0.65594278]
[1641878759817,0.31593895,42102.0,42099.0,0.05031063]
[1641878760016,0.31593895,42102.0,42099.0,0.00031063]
[1641878760218,0.24293895,42102.0,42099.0,0.00031063]
[1641878761017,0.31693895,42102.0,42099.0,0.00031063]
[1641878762266,0.24293895,42102.0,42099.0,0.00031063]
[1641878762467,0.00068857,42103.0,42099.0,0.00031063]
[1641878763067,0.06468857,42103.0,42097.0,0.60594225]
[1641878763469,0.26301138,42102.0,42097.0,0.60594225]
[1641878764669,0.00068857,42103.0,42097.0,0.0003101]
[1641878764869,0.00068858,42102.0,42097.0,0.3482042]
[1641878765068,0.01768858,42102.0,42097.0,0.0003101]
[1641878765709,0.01768858,42102.0,42097.0,0.33997638]
[1641878766113,0.01772075,42102.0,42097.0,0.33997638]
[1641878766414,0.00072075,42102.0,42097.0,0.33997638]
[1641878767013,0.05072075,42102.0,42097.0,0.33997638]
[1641878767813,0.05072075,42102.0,42097.0,0.0003101]
[1641878768013,0.05072075,42102.0,42099.0,0.00031063]
[1641878768413,0.00072075,42102.0,42099.0,0.00031063]
[1641878769014,0.05072075,42102.0,42099.0,0.00031063]
[1641878769667,0.05,42102.0,42099.0,0.00031063]
[1641878769863,0.05,42102.0,42099.0,0.00802207]
[1641878770062,0.05,42102.0,42099.0,0.00031063]
[1641878770466,0.00071455,42103.0,42099.0,0.00031063]
[1641878771065,0.05271455,42103.0,42099.0,0.00031063]
[1641878773009,0.06071455,42103.0,42098.0,0.00524818]
[1641878773210,0.06143029,42103.0,42097.0,0.35129486]
[1641878773411,0.06071574,42103.0,42098.0,0.00720081]
[1641878773610,0.06071574,42103.0,42097.0,0.35069836]
[1641878773813,0.06071574,42103.0,42098.0,0.00734386]
[1641878774111,0.06071574,42103.0,42099.0,0.00718377]
[1641878774310,0.00071574,42103.0,42099.0,0.00724208]
[1641878774510,0.00071574,42103.0,42100.0,0.00640545]
[1641878774913,0.00071574,42103.0,42097.0,0.34378907]
[1641878775110,0.01471574,42103.0,42100.0,0.001]
[1641878776415,0.2,42101.0,42097.0,0.67564848]
[1641878776673,0.2,42101.0,42097.0,0.68324768]
[1641878776868,0.00071574,42103.0,42098.0,0.00693115]
[1641878777068,0.015,42101.0,42097.0,0.68766032]
[1641878777273,0.015,42101.0,42100.0,0.371498]
[1641878777470,0.015,42101.0,42100.0,0.421498]
[1641878778369,0.2,42101.0,42099.0,0.00061413]
[1641878778970,0.10071551,42103.0,42099.0,0.0061706]
[1641878779170,0.029,42101.0,42099.0,0.01367575]
[1641878779370,0.029,42101.0,42099.0,0.01374484]
[1641878779570,0.029,42101.0,42100.0,0.371498]
[1641878779773,0.029,42101.0,42100.0,0.321498]
[1641878779970,0.029,42101.0,42100.0,0.316498]
[1641878780172,0.229,42101.0,42100.0,0.316498]
[1641878780412,0.2,42101.0,42100.0,0.316498]
[1641878781016,0.56637178,42101.0,42100.0,0.280498]
[1641878781317,0.21223686,42101.0,42100.0,0.009]
[1641878781917,0.48363016,42101.0,42100.0,0.009]
[1641878782117,0.75866082,42101.0,42100.0,0.009]
[1641878782318,0.74766082,42101.0,42099.0,0.00061413]
[1641878782917,0.54766082,42101.0,42099.0,0.00061413]
[1641878783117,0.56166082,42101.0,42100.0,0.00031299]
[1641878783319,0.88890588,42101.0,42100.0,0.00031299]
[1641878783522,0.56166082,42101.0,42100.0,0.00031299]
[1641878783719,0.88238602,42101.0,42100.0,0.00031299]
[1641878784173,0.56166082,42101.0,42100.0,0.00031299]
[1641878784466,0.74766082,42101.0,42100.0,0.00031299]
[1641878785067,1.09459738,42101.0,42100.0,0.00031299]
[1641878785468,0.76066082,42101.0,42100.0,0.00031299]
[1641878785867,1.08191156,42101.0,42100.0,0.00031299]
[1641878786067,0.76066082,42101.0,42100.0,0.00031299]
[1641878786270,0.74766082,42101.0,42100.0,0.00031299]
[1641878787168,0.76066082,42101.0,42100.0,0.00031299]
[1641878788019,0.76066082,42101.0,42099.0,0.00061391]
[1641878788917,0.54766082,42101.0,42099.0,0.00061391]
[1641878789118,0.56166082,42101.0,42099.0,0.00061391]
[1641878789923,0.29026752,42101.0,42099.0,0.00061391]
[1641878790319,0.00123686,42101.0,42099.0,0.00061391]
[1641878791120,0.01423686,42101.0,42099.0,0.00061391]
[1641878791525,0.013,42101.0,42099.0,0.00061391]
[1641878792273,0.00071555,42102.0,42099.0,0.00061391]
[1641878792473,0.33598495,42101.0,42099.0,0.00061391]
[1641878793070,0.34898495,42101.0,42099.0,0.00061391]
[1641878794275,0.33598495,42101.0,42099.0,0.00061391]
[1641878795176,0.34898495,42101.0,42099.0,0.00061391]
[1641878796420,0.33598495,42101.0,42099.0,0.00061391]
[1641878797021,0.34898495,42101.0,42099.0,0.00061391]
[1641878798425,0.32731332,42100.0,42099.0,0.00061391]
[1641878798625,0.3803192,42099.0,42096.0,0.38450767]
[1641878799171,0.3883192,42099.0,42091.0,0.71219548]
[1641878799365,0.2345691,42096.0,42091.0,0.81219548]
[1641878799566,0.2345691,42096.0,42092.0,0.371417]
[1641878799967,0.00071559,42097.0,42093.0,0.70653936]
[1641878800172,0.00071559,42097.0,42094.0,0.371417]
[1641878800367,0.00071559,42097.0,42094.0,0.421417]
[1641878800667,0.00071559,42097.0,42094.0,0.471417]
[1641878801066,0.009,42097.0,42094.0,0.471417]
[1641878801468,0.009,42097.0,42095.0,0.067267]
[1641878801867,0.009,42097.0,42096.0,0.721417]
[1641878802069,0.009,42097.0,42096.0,0.821417]
[1641878802268,0.009,42097.0,42096.0,0.421417]
[1641878802567,0.009,42097.0,42096.0,0.471417]
[1641878802772,0.009,42097.0,42096.0,1.06336889]
[1641878803018,0.00071558,42098.0,42096.0,1.0637332]
[1641878803217,0.00071558,42098.0,42096.0,0.10036431]
[1641878803218,0.003,42097.0,42096.0,0.10036431]
[1641878803418,0.003,42097.0,42096.0,0.47178131]
[1641878804117,0.003,42097.0,42096.0,1.0637332]
[1641878804317,0.00071557,42099.0,42096.0,1.0637332]
[1641878804519,0.00071557,42099.0,42098.0,0.421417]
[1641878804722,0.00071558,42099.0,42098.0,0.421417]
[1641878804920,0.00071558,42099.0,42098.0,0.471417]
[1641878805121,0.00471558,42099.0,42098.0,0.471417]
[1641878805923,0.004,42099.0,42098.0,1.77001325]
[1641878806124,0.004,42099.0,42098.0,1.17806136]
[1641878806324,0.00071557,42101.0,42098.0,1.17806136]
[1641878806525,0.00071557,42101.0,42098.0,1.77001325]
[1641878806967,0.00071557,42101.0,42100.0,0.371417]
[1641878807170,0.02,42101.0,42100.0,0.67286651]
[1641878807569,0.02,42101.0,42100.0,0.77286651]
[1641878807767,0.22,42101.0,42100.0,0.77286651]
[1641878807971,0.22,42101.0,42100.0,0.77322976]
[1641878808370,0.2,42101.0,42100.0,0.70605676]
[1641878808771,0.2,42101.0,42100.0,0.65605676]
[1641878809169,0.211,42101.0,42100.0,0.05036325]
[1641878809570,0.211,42101.0,42100.0,0.00036325]
[1641878810416,0.2,42101.0,42100.0,0.00036325]
[1641878811222,0.214,42101.0,42100.0,0.00036325]
[1641878813021,0.2,42101.0,42099.0,0.60569351]
[1641878813225,0.214,42101.0,42099.0,0.60569351]
[1641878814020,0.214,42101.0,42098.0,0.60605676]
[1641878814280,0.214,42101.0,42098.0,0.65605676]
[1641878814281,0.014,42101.0,42098.0,0.65605676]
[1641878814482,0.00071555,42102.0,42099.0,0.60569351]
[1641878814880,0.00071555,42102.0,42100.0,0.60569351]
[1641878815179,0.01371555,42102.0,42100.0,0.60569351]
[1641878815580,0.013,42102.0,42100.0,0.60569351]
[1641878815883,0.2,42101.0,42099.0,0.60569351]
[1641878816081,0.3471147,42100.0,42099.0,0.60569351]
[1641878816281,0.00124201,42100.0,42099.0,0.60569351]
[1641878816584,0.00124201,42100.0,42098.0,0.00036325]
[1641878817182,0.01324201,42100.0,42098.0,0.00036325]
[1641878818018,0.01324201,42100.0,42095.0,0.60610143]
[1641878818219,0.32286928,42096.0,42095.0,0.60610143]
[1641878818423,0.32286928,42096.0,42095.0,0.97751843]
[1641878818620,0.57817428,42096.0,42095.0,0.37182492]
[1641878818821,0.32286928,42096.0,42095.0,0.37182492]
[1641878819122,0.009,42096.0,42095.0,0.47182492]
[1641878819723,0.009,42096.0,42095.0,0.37182492]
[1641878819926,0.25529069,42096.0,42095.0,0.37182492]
[1641878820123,0.25529069,42096.0,42095.0,0.97751843]
[1641878820323,0.24629069,42096.0,42095.0,0.97751843]
[1641878820724,0.24629069,42096.0,42095.0,0.37182492]
[1641878821126,0.25629069,42096.0,42095.0,0.37182492]
[1641878822067,0.25629069,42096.0,42095.0,0.97751843]
[1641878822868,0.24629069,42096.0,42095.0,0.97751843]
[1641878823069,0.25629069,42096.0,42095.0,0.97751843]
[1641878823273,0.01,42096.0,42095.0,1.02751843]
[1641878824069,0.01,42096.0,42095.0,0.42182492]
[1641878824270,0.00071559,42098.0,42095.0,0.42182492]
[1641878824271,0.00071559,42098.0,42095.0,1.68183598]
[1641878824471,0.00071559,42098.0,42097.0,0.371417]
[1641878824770,0.00071559,42098.0,42097.0,0.421417]
[1641878825170,0.013,42098.0,42097.0,1.02720504]
[1641878826420,0.33276484,42100.0,42097.0,1.02720504]
[1641878827021,0.33276484,42100.0,42097.0,0.421417]
[1641878827221,0.27796724,42098.0,42097.0,0.371417]
[1641878827921,0.27796724,42098.0,42095.0,0.60578804]
[1641878828129,0.27796724,42098.0,42095.0,0.65578804]
[1641878828326,0.27796724,42098.0,42096.0,0.371417]
[1641878828924,0.00071558,42099.0,42096.0,0.371417]
[1641878829175,0.01,42098.0,42096.0,0.371417]
[1641878830378,0.00071558,42099.0,42096.0,0.371417]
[1641878831081,0.00071558,42099.0,42096.0,0.421417]
[1641878831280,0.012,42099.0,42096.0,0.421417]
[1641878831978,0.012,42099.0,42096.0,0.416417]
[1641878832378,0.59319782,42100.0,42096.0,0.416417]
[1641878832578,0.59319782,42100.0,42095.0,0.65578804]
[1641878833021,0.59319782,42100.0,42098.0,0.00040818]
[1641878833325,0.60319782,42100.0,42098.0,0.00040818]
[1641878834321,0.59319782,42100.0,42098.0,0.00040818]
[1641878834726,0.59248225,42100.0,42098.0,0.00040818]
[1641878835122,0.60548225,42100.0,42098.0,0.00040818]
[1641878836525,0.59248225,42100.0,42098.0,0.00040818]
[1641878836969,0.35703803,42099.0,42098.0,0.00040818]
[1641878837267,1.27907716,42099.0,42098.0,0.00040818]
[1641878838069,0.37014085,42089.0,42087.0,0.60578804]
[1641878838670,0.37014085,42089.0,42085.0,0.60578804]
[1641878838872,0.27790324,42088.0,42085.0,0.60578804]
[1641878839270,0.60064043,42088.0,42085.0,0.60578804]
[1641878839469,0.60064043,42088.0,42077.0,0.80800334]
[1641878839470,0.60064043,42088.0,42083.0,0.60578804]
[1641878839669,0.2,42085.0,42083.0,0.60578804]
[1641878839870,0.2,42085.0,42084.0,0.371417]
[1641878840421,0.33385533,42085.0,42084.0,0.371417]
[1641878841020,0.2,42084.0,42082.0,0.60578804]
[1641878841424,0.25089888,42083.0,42081.0,0.60578804]
[1641878841621,0.25089888,42083.0,42082.0,0.371417]
[1641878843025,0.25089888,42083.0,42082.0,0.37179541]
[1641878843225,0.26089888,42083.0,42082.0,0.37179541]
[1641878844366,0.25089888,42083.0,42082.0,0.37179541]
[1641878845168,0.26089888,42083.0,42082.0,0.37179541]
[1641878846570,0.25089888,42083.0,42082.0,0.37179541]
[1641878847172,0.25989888,42083.0,42082.0,0.37179541]
[1641878847574,0.25989888,42083.0,42082.0,0.00037841]
[1641878848020,0.25989888,42083.0,42078.0,0.60615556]
[1641878848218,0.25989888,42083.0,42078.0,0.00036752]
[1641878848420,0.27432461,42080.0,42078.0,0.00036752]
[1641878848620,0.25089888,42083.0,42079.0,0.371417]
[1641878849020,0.25089888,42083.0,42078.0,0.00036752]
[1641878849220,0.25989888,42083.0,42078.0,0.00036752]
[1641878849718,0.26831664,42082.0,42078.0,0.00036752]
[1641878851324,0.27731664,42082.0,42078.0,0.00036752]
[1641878852967,0.27731664,42082.0,42077.0,0.00089786]
[1641878853168,0.27831664,42082.0,42077.0,0.00089786]
[1641878854569,0.26831664,42082.0,42077.0,0.00089786]
[1641878855272,0.27831664,42082.0,42077.0,0.00089786]
[1641878856321,0.27831664,42082.0,42077.0,0.00142774]
[1641878856521,0.26831664,42082.0,42077.0,0.00089786]
[1641878857324,0.27831664,42082.0,42077.0,0.00089786]
[1641878857921,0.01,42082.0,42079.0,0.0003682]
[1641878858521,0.25089888,42083.0,42079.0,0.0003682]
[1641878858923,0.52007732,42083.0,42079.0,0.0003682]
[1641878859177,0.53007732,42083.0,42079.0,0.0003682]
[1641878860568,0.52007732,42083.0,42079.0,0.0003682]
[1641878861368,0.53007732,42083.0,42079.0,0.0003682]
[1641878862574,0.52007732,42083.0,42079.0,0.0003682]
[1641878862770,0.25089888,42083.0,42079.0,0.0003682]
[1641878863017,0.25089888,42083.0,42077.0,0.00089762]
[1641878863217,0.26089888,42083.0,42078.0,0.371417]
[1641878863618,0.26089888,42083.0,42078.0,0.05]
[1641878864018,0.26089888,42083.0,42077.0,0.70668566]
[1641878864418,0.33941963,42082.0,42077.0,0.70668566]
[1641878864619,0.33941963,42082.0,42077.0,0.10089762]
[1641878864818,0.33941963,42082.0,42077.0,0.05089763]
[1641878865018,0.33941963,42082.0,42077.0,0.00089763]
[1641878865221,0.34941963,42082.0,42077.0,0.00089763]
[1641878866318,0.01,42082.0,42077.0,0.00089763]
[1641878866521,0.25089888,42083.0,42078.0,0.371417]
[1641878866969,0.25089888,42083.0,42078.0,0.421417]
[1641878867173,0.20129334,42084.0,42078.0,0.421417]
[1641878867373,0.01,42083.0,42078.0,0.421417]
[1641878867776,0.01,42083.0,42079.0,0.34177793]
[1641878867973,0.01,42083.0,42080.0,0.00032198]
[1641878868175,0.01,42083.0,42082.0,0.371417]
[1641878868474,0.2,42084.0,42082.0,0.40562893]
[1641878868673,0.2,42084.0,42082.0,0.1]
[1641878868874,0.2,42084.0,42082.0,0.05]
[1641878869072,0.2,42084.0,42080.0,0.00032198]
[1641878869273,0.206,42084.0,42080.0,0.60611002]
[1641878869675,1.59932593,42082.0,42080.0,0.60611002]
[1641878869875,0.206,42084.0,42080.0,0.60611002]
[1641878870075,0.2,42083.0,42080.0,0.00032198]
[1641878870521,0.27624618,42082.0,42080.0,0.00032198]
[1641878870722,0.2,42081.0,42080.0,0.00032198]
[1641878871121,0.47624618,42082.0,42080.0,0.00032198]
[1641878871325,0.009,42081.0,42080.0,0.00032198]
[1641878872524,0.47624618,42082.0,42080.0,0.00032198]
[1641878873125,0.47624618,42082.0,42079.0,0.00036798]
[1641878873324,0.48824618,42082.0,42079.0,0.00036798]
[1641878873725,0.28258559,42080.0,42078.0,0.50615602]
[1641878874369,0.28824618,42082.0,42079.0,0.371417]
[1641878874971,0.28824618,42082.0,42078.0,0.50615602]
[1641878875272,0.2,42078.0,42077.0,0.70717425]
[1641878875671,0.2,42078.0,42077.0,0.70717424]
[1641878875872,0.2,42078.0,42077.0,0.00052988]
[1641878876472,0.27624618,42082.0,42077.0,0.00052988]
[1641878876872,0.27624618,42082.0,42076.0,0.70664436]
[1641878877072,0.29817387,42079.0,42076.0,0.70664436]
[1641878877273,0.2,42077.0,42076.0,0.70664436]
[1641878877673,0.2,42077.0,42075.0,0.70717427]
[1641878877922,0.2,42077.0,42075.0,0.70664436]
[1641878878322,0.29817387,42079.0,42075.0,0.70664436]
[1641878878824,0.29817387,42079.0,42075.0,1.09877826]
[1641878879224,0.30317387,42079.0,42075.0,1.09930818]
[1641878879825,0.30317387,42079.0,42075.0,0.70717428]
[1641878880425,0.29817387,42079.0,42075.0,0.70717428]
[1641878880629,0.37287036,42080.0,42075.0,0.70717428]
[1641878881025,0.27624618,42082.0,42075.0,0.70717428]
[1641878881228,0.005,42080.0,42075.0,0.71309453]
[1641878881426,0.005,42080.0,42076.0,1.09892954]
[1641878881870,0.34654956,42080.0,42076.0,1.09892954]
[1641878882271,0.34654956,42080.0,42076.0,1.09392954]
[1641878882473,0.34654956,42080.0,42078.0,0.70164436]
[1641878882672,0.34154956,42080.0,42078.0,0.70164436]
[1641878883073,0.34154956,42080.0,42078.0,0.70204353]
[1641878883276,0.34654956,42080.0,42078.0,0.70204353]
[1641878883674,0.34654956,42080.0,42079.0,0.60613056]
[1641878884475,0.34154956,42080.0,42079.0,0.60613056]
[1641878885418,0.34654956,42080.0,42079.0,0.60613056]
[1641878885620,0.34654956,42080.0,42078.0,0.60652973]
[1641878886824,0.34654956,42080.0,42079.0,0.60613056]
[1641878888023,0.34654956,42080.0,42079.0,0.60652947]
[1641878888625,0.34154956,42080.0,42079.0,0.60652947]
[1641878889175,0.34154956,42080.0,42079.0,0.00039891]
[1641878889378,0.34654956,42080.0,42079.0,0.00039891]
[1641878889575,0.34654956,42080.0,42079.0,0.60652947]
[1641878889975,0.34654956,42080.0,42079.0,0.00039891]
[1641878890377,0.005,42080.0,42079.0,0.00039891]
[1641878890576,0.27624618,42082.0,42079.0,0.00039891]
[1641878891277,0.28124618,42082.0,42079.0,0.60652947]
[1641878891479,0.33588257,42081.0,42079.0,0.60652947]
[1641878892278,0.33588257,42081.0,42080.0,0.60613056]
[1641878893120,0.33588257,42081.0,42080.0,0.6065292]